[Event "Early-Titled-Tuesday-Blitz-June-18-2024"]
[Site "Chess.com"]
[Date "2024.06.18"]
[Round "8"]
[White "edgarhay012"]
[Black "AlexanderKing"]
[Result "1-0"]
[WhiteElo "2691"]
[BlackElo "2538"]
[TimeControl "180+1"]
[EndTime "9:28:50 PDT"]
[Termination "edgarhay012 won on time"]

1. e4 {[%clk 0:02:55.4]} 1... e5 {[%clk 0:02:59.8]} 2. Nf3 {[%clk 0:02:54.2]}
2... Nc6 {[%clk 0:03:00]} 3. Bb5 {[%clk 0:02:53.9]} 3... a6 {[%clk 0:03:00.3]}
4. Ba4 {[%clk 0:02:54.1]} 4... Nf6 {[%clk 0:03:00.8]} 5. O-O {[%clk 0:02:54.6]}
5... Nxe4 {[%clk 0:03:01.2]} 6. Re1 {[%clk 0:02:50.9]} 6... Nc5 {[%clk
0:03:00.8]} 7. Bxc6 {[%clk 0:02:50.8]} 7... dxc6 {[%clk 0:03:01.7]} 8. d4 {[%clk
0:02:50.4]} 8... Ne6 {[%clk 0:02:58.3]} 9. Nxe5 {[%clk 0:02:50]} 9... Be7 {[%clk
0:02:56.4]} 10. c3 {[%clk 0:02:49.2]} 10... O-O {[%clk 0:02:56.1]} 11. Nd2
{[%clk 0:02:49.2]} 11... c5 {[%clk 0:02:55.9]} 12. Ndf3 {[%clk 0:02:47]} 12...
cxd4 {[%clk 0:02:55.6]} 13. cxd4 {[%clk 0:02:47.7]} 13... Qd5 {[%clk 0:02:41.4]}
14. Be3 {[%clk 0:02:40.7]} 14... Re8 {[%clk 0:02:25.1]} 15. Rc1 {[%clk
0:02:39.3]} 15... c6 {[%clk 0:02:25.5]} 16. Qc2 {[%clk 0:02:35]} 16... f6 {[%clk
0:02:01.9]} 17. Nc4 {[%clk 0:02:33]} 17... Qd8 {[%clk 0:01:50.5]} 18. d5 {[%clk
0:02:28.2]} 18... cxd5 {[%clk 0:01:44.8]} 19. Nb6 {[%clk 0:02:27.1]} 19... Rb8
{[%clk 0:01:45.5]} 20. Qb3 {[%clk 0:02:22.3]} 20... Kh8 {[%clk 0:01:09.5]} 21.
Red1 {[%clk 0:02:16.9]} 21... d4 {[%clk 0:00:48.2]} 22. Nxd4 {[%clk 0:02:13]}
22... Nc5 {[%clk 0:00:38]} 23. Qf7 {[%clk 0:01:46.8]} 23... Rf8 {[%clk
0:00:33.6]} 24. Nc6 {[%clk 0:01:46.3]} 24... Rxf7 {[%clk 0:00:04.6]} 25. Nxd8
{[%clk 0:01:36.1]} 25... Rf8 {[%clk 0:00:03.7]} 26. Bxc5 {[%clk 0:01:35.3]}
26... Bxd8 {[%clk 0:00:01.9]} 27. Nxc8 {[%clk 0:01:29.9]} 27... Re8 {[%clk
0:00:01.5]} 28. Nd6 {[%clk 0:01:28.4]} 28... Re6 {[%clk 0:00:01.2]} 29. Nf7+
{[%clk 0:01:28.6]} 1-0

[Event "Early-Titled-Tuesday-Blitz-June-18-2024"]
[Site "Chess.com"]
[Date "2024.06.18"]
[Round "8"]
[White "Attacker_2006"]
[Black "Kirill_Klukin"]
[Result "1-0"]
[WhiteElo "2531"]
[BlackElo "2871"]
[TimeControl "180+1"]
[EndTime "9:28:57 PDT"]
[Termination "Attacker_2006 won on time"]

1. e4 {[%clk 0:02:52.4]} 1... c5 {[%clk 0:03:00]} 2. Nc3 {[%clk 0:02:49.9]} 2...
g6 {[%clk 0:03:00]} 3. d4 {[%clk 0:02:49.6]} 3... cxd4 {[%clk 0:03:00.6]} 4.
Qxd4 {[%clk 0:02:50.2]} 4... Nf6 {[%clk 0:03:01.4]} 5. Be3 {[%clk 0:02:49.2]}
5... Bg7 {[%clk 0:02:55.6]} 6. f3 {[%clk 0:02:45.1]} 6... Nc6 {[%clk 0:02:55.8]}
7. Qd2 {[%clk 0:02:45.3]} 7... O-O {[%clk 0:02:54]} 8. O-O-O {[%clk 0:02:44.2]}
8... Qa5 {[%clk 0:02:19.3]} 9. Kb1 {[%clk 0:02:37]} 9... d6 {[%clk 0:02:06.9]}
10. Bh6 {[%clk 0:02:37.1]} 10... Be6 {[%clk 0:02:05.3]} 11. h4 {[%clk
0:02:32.7]} 11... Rfc8 {[%clk 0:02:00.3]} 12. Bxg7 {[%clk 0:02:32.4]} 12... Kxg7
{[%clk 0:02:00.6]} 13. h5 {[%clk 0:02:30.2]} 13... Ne5 {[%clk 0:01:34.9]} 14. a3
{[%clk 0:02:09.4]} 14... Nc4 {[%clk 0:01:19.8]} 15. Bxc4 {[%clk 0:02:08.4]}
15... Rxc4 {[%clk 0:01:20.7]} 16. hxg6 {[%clk 0:02:08.8]} 16... fxg6 {[%clk
0:01:19.3]} 17. Nge2 {[%clk 0:02:08.8]} 17... Rac8 {[%clk 0:01:17.2]} 18. g4
{[%clk 0:02:07.6]} 18... b5 {[%clk 0:01:03.9]} 19. Qh6+ {[%clk 0:02:03.3]} 19...
Kf7 {[%clk 0:00:59.8]} 20. g5 {[%clk 0:02:01.6]} 20... Ng8 {[%clk 0:01:00.1]}
21. Qxh7+ {[%clk 0:02:01.2]} 21... Ke8 {[%clk 0:01:00.8]} 22. Qxg6+ {[%clk
0:01:54.6]} 22... Bf7 {[%clk 0:01:01.2]} 23. Qg7 {[%clk 0:01:54.5]} 23... b4
{[%clk 0:00:58.4]} 24. Rh7 {[%clk 0:01:50.3]} 24... Be6 {[%clk 0:00:46.3]} 25.
Rxd6 {[%clk 0:01:36.7]} 25... R8c6 {[%clk 0:00:02.8]} 26. Qg6+ {[%clk
0:01:21.2]} 1-0

[Event "Early-Titled-Tuesday-Blitz-June-18-2024"]
[Site "Chess.com"]
[Date "2024.06.18"]
[Round "8"]
[White "twofoxniel"]
[Black "ulises2013"]
[Result "0-1"]
[WhiteElo "2684"]
[BlackElo "2858"]
[TimeControl "180+1"]
[EndTime "9:28:59 PDT"]
[Termination "ulises2013 won by resignation"]

1. e4 {[%clk 0:02:59.3]} 1... g6 {[%clk 0:03:00.9]} 2. Nf3 {[%clk 0:02:49.3]}
2... Bg7 {[%clk 0:03:00.1]} 3. Bc4 {[%clk 0:02:49.6]} 3... c5 {[%clk 0:03:00.4]}
4. O-O {[%clk 0:02:48.8]} 4... Nc6 {[%clk 0:03:00.6]} 5. Nc3 {[%clk 0:02:48.7]}
5... e6 {[%clk 0:02:59.8]} 6. Re1 {[%clk 0:02:47.9]} 6... Nge7 {[%clk 0:03:00]}
7. d3 {[%clk 0:02:48.2]} 7... O-O {[%clk 0:02:59.4]} 8. Bg5 {[%clk 0:02:48.4]}
8... h6 {[%clk 0:02:59.6]} 9. Bh4 {[%clk 0:02:47.3]} 9... g5 {[%clk 0:02:49.5]}
10. Bg3 {[%clk 0:02:46.5]} 10... d5 {[%clk 0:02:49.4]} 11. Bb3 {[%clk
0:02:36.1]} 11... a6 {[%clk 0:02:45.7]} 12. h3 {[%clk 0:02:34.4]} 12... b5
{[%clk 0:02:39.3]} 13. exd5 {[%clk 0:02:30.2]} 13... exd5 {[%clk 0:02:38.4]} 14.
a3 {[%clk 0:02:23.4]} 14... Be6 {[%clk 0:02:37.8]} 15. Ne5 {[%clk 0:02:21.2]}
15... Nxe5 {[%clk 0:02:33]} 16. Bxe5 {[%clk 0:02:22.1]} 16... Bxe5 {[%clk
0:02:29.8]} 17. Rxe5 {[%clk 0:02:23]} 17... Ng6 {[%clk 0:02:26.9]} 18. Re1
{[%clk 0:02:11.9]} 18... Qd6 {[%clk 0:02:26.4]} 19. Qf3 {[%clk 0:02:11.1]} 19...
Rad8 {[%clk 0:01:30.9]} 20. d4 {[%clk 0:02:10.9]} 20... c4 {[%clk 0:01:29.7]}
21. Ba2 {[%clk 0:02:10.8]} 21... Qf4 {[%clk 0:01:24.5]} 22. Qd1 {[%clk
0:02:05.7]} 22... Rfe8 {[%clk 0:01:19.1]} 23. Ne2 {[%clk 0:02:05.2]} 23... Qf6
{[%clk 0:01:15.8]} 24. c3 {[%clk 0:02:03.8]} 24... g4 {[%clk 0:01:02]} 25. hxg4
{[%clk 0:01:59.7]} 25... Bxg4 {[%clk 0:01:02.9]} 26. f3 {[%clk 0:02:00.2]} 26...
Bxf3 {[%clk 0:00:54.9]} 27. gxf3 {[%clk 0:02:00.2]} 27... Qxf3 {[%clk
0:00:51.6]} 28. Kh2 {[%clk 0:01:25]} 28... Qf2+ {[%clk 0:00:40.5]} 29. Kh1
{[%clk 0:01:22.8]} 29... Re4 {[%clk 0:00:38.5]} 30. Nf4 {[%clk 0:01:09.7]} 30...
Rxf4 {[%clk 0:00:36.7]} 31. Qh5 {[%clk 0:01:08.2]} 31... Rh4+ {[%clk 0:00:35.8]}
32. Qxh4 {[%clk 0:01:08.5]} 32... Qxh4+ {[%clk 0:00:36.7]} 33. Kg2 {[%clk
0:01:07.9]} 33... Qg5+ {[%clk 0:00:35.1]} 34. Kf3 {[%clk 0:01:08.4]} 34... Rd6
{[%clk 0:00:34.9]} 0-1

[Event "Early-Titled-Tuesday-Blitz-June-18-2024"]
[Site "Chess.com"]
[Date "2024.06.18"]
[Round "8"]
[White "TitarovVasiliYouTube"]
[Black "HelenaWalker2912"]
[Result "1-0"]
[WhiteElo "2587"]
[BlackElo "2411"]
[TimeControl "180+1"]
[EndTime "9:29:03 PDT"]
[Termination "TitarovVasiliYouTube won by checkmate"]

1. a3 {[%clk 0:02:54.2]} 1... d5 {[%clk 0:02:59.3]} 2. e3 {[%clk 0:02:55]} 2...
e5 {[%clk 0:02:58.4]} 3. c4 {[%clk 0:02:53.6]} 3... c6 {[%clk 0:02:57.3]} 4.
cxd5 {[%clk 0:02:53.5]} 4... cxd5 {[%clk 0:02:58.2]} 5. d4 {[%clk 0:02:54.2]}
5... exd4 {[%clk 0:02:50.4]} 6. exd4 {[%clk 0:02:53.4]} 6... Nc6 {[%clk
0:02:50.2]} 7. Nc3 {[%clk 0:02:54]} 7... Nf6 {[%clk 0:02:49.1]} 8. Nf3 {[%clk
0:02:54.2]} 8... h6 {[%clk 0:02:46.4]} 9. Bb5 {[%clk 0:02:50.4]} 9... Bd6 {[%clk
0:02:44.1]} 10. Qe2+ {[%clk 0:02:50.5]} 10... Be6 {[%clk 0:02:43.6]} 11. O-O
{[%clk 0:02:49.8]} 11... O-O {[%clk 0:02:43.5]} 12. Be3 {[%clk 0:02:38.5]} 12...
Rc8 {[%clk 0:02:38.6]} 13. Rac1 {[%clk 0:02:37.3]} 13... a6 {[%clk 0:02:37.5]}
14. Bd3 {[%clk 0:02:36.7]} 14... Na5 {[%clk 0:02:20.8]} 15. Ne5 {[%clk
0:02:29.7]} 15... Bxe5 {[%clk 0:01:05.9]} 16. dxe5 {[%clk 0:02:30.4]} 16... Ng4
{[%clk 0:01:05.9]} 17. Bf4 {[%clk 0:02:18.9]} 17... Nb3 {[%clk 0:01:04.6]} 18.
Rcd1 {[%clk 0:02:16.4]} 18... f6 {[%clk 0:00:47]} 19. h3 {[%clk 0:01:49.9]}
19... fxe5 {[%clk 0:00:41.5]} 20. Bxe5 {[%clk 0:01:50.3]} 20... Nxe5 {[%clk
0:00:40.4]} 21. Qxe5 {[%clk 0:01:51.2]} 21... Qf6 {[%clk 0:00:40.6]} 22. Qxf6
{[%clk 0:01:47]} 22... Rxf6 {[%clk 0:00:41.4]} 23. Bc2 {[%clk 0:01:42.3]} 23...
d4 {[%clk 0:00:38.3]} 24. Bxb3 {[%clk 0:01:41.3]} 24... dxc3 {[%clk 0:00:37.8]}
25. Bxe6+ {[%clk 0:01:36.5]} 25... Rxe6 {[%clk 0:00:38.7]} 26. bxc3 {[%clk
0:01:32.5]} 26... Rxc3 {[%clk 0:00:39.6]} 27. a4 {[%clk 0:01:29]} 27... Ra3
{[%clk 0:00:25.6]} 28. Rd4 {[%clk 0:01:22.1]} 28... Re2 {[%clk 0:00:23.1]} 29.
Rb1 {[%clk 0:01:21.3]} 29... Rea2 {[%clk 0:00:17]} 30. Rxb7 {[%clk 0:01:17.7]}
30... Rxa4 {[%clk 0:00:17.3]} 31. Rdd7 {[%clk 0:01:17.9]} 31... g5 {[%clk
0:00:16.8]} 32. Rb8# {[%clk 0:01:17.7]} 1-0

[Event "Early-Titled-Tuesday-Blitz-June-18-2024"]
[Site "Chess.com"]
[Date "2024.06.18"]
[Round "8"]
[White "Matalon"]
[Black "Lion-Al-Messi"]
[Result "1/2-1/2"]
[WhiteElo "2463"]
[BlackElo "2627"]
[TimeControl "180+1"]
[EndTime "9:29:05 PDT"]
[Termination "Game drawn - insufficient material"]

1. e4 {[%clk 0:03:00.9]} 1... e6 {[%clk 0:02:56.7]} 2. d4 {[%clk 0:02:59.9]}
2... d5 {[%clk 0:02:57.3]} 3. Nd2 {[%clk 0:03:00.3]} 3... c5 {[%clk 0:02:55.8]}
4. Ngf3 {[%clk 0:02:59.6]} 4... cxd4 {[%clk 0:02:56]} 5. Nxd4 {[%clk 0:02:59.3]}
5... Nf6 {[%clk 0:02:56.5]} 6. Bd3 {[%clk 0:02:54.6]} 6... Nc6 {[%clk
0:02:54.6]} 7. Nxc6 {[%clk 0:02:53.8]} 7... bxc6 {[%clk 0:02:55.5]} 8. Qe2
{[%clk 0:02:53.8]} 8... Be7 {[%clk 0:02:55.8]} 9. Nf3 {[%clk 0:02:51.5]} 9...
O-O {[%clk 0:02:55.6]} 10. O-O {[%clk 0:02:29.6]} 10... dxe4 {[%clk 0:02:55.4]}
11. Bxe4 {[%clk 0:02:29.1]} 11... Nxe4 {[%clk 0:02:56.3]} 12. Qxe4 {[%clk
0:02:29.1]} 12... Qd5 {[%clk 0:02:56.8]} 13. Qe2 {[%clk 0:02:26.7]} 13... Rd8
{[%clk 0:02:55]} 14. Be3 {[%clk 0:02:21.2]} 14... Qe4 {[%clk 0:02:54.5]} 15.
Rad1 {[%clk 0:02:16.4]} 15... Bb7 {[%clk 0:02:53.6]} 16. Rxd8+ {[%clk
0:02:08.4]} 16... Rxd8 {[%clk 0:02:54.5]} 17. Rd1 {[%clk 0:01:58.2]} 17... Rxd1+
{[%clk 0:02:53.9]} 18. Qxd1 {[%clk 0:01:58.3]} 18... c5 {[%clk 0:02:47.8]} 19.
h3 {[%clk 0:01:44.4]} 19... Qd5 {[%clk 0:02:47]} 20. Qxd5 {[%clk 0:01:39.1]}
20... Bxd5 {[%clk 0:02:47.9]} 21. Nd2 {[%clk 0:01:37.9]} 21... Bxa2 {[%clk
0:02:44.8]} 22. b3 {[%clk 0:01:35.2]} 22... a6 {[%clk 0:02:44.4]} 23. Kf1 {[%clk
0:01:33.1]} 23... a5 {[%clk 0:02:38.8]} 24. Ke2 {[%clk 0:01:29.2]} 24... f5
{[%clk 0:02:29]} 25. f4 {[%clk 0:01:25.6]} 25... g5 {[%clk 0:02:27.6]} 26. g3
{[%clk 0:01:23.7]} 26... gxf4 {[%clk 0:02:25.3]} 27. gxf4 {[%clk 0:01:23.4]}
27... Kf7 {[%clk 0:02:25]} 28. Kd3 {[%clk 0:01:22.8]} 28... e5 {[%clk
0:02:14.3]} 29. fxe5 {[%clk 0:01:17.3]} 29... Ke6 {[%clk 0:02:14.6]} 30. Kc3
{[%clk 0:01:16.5]} 30... a4 {[%clk 0:01:51.6]} 31. Kb2 {[%clk 0:01:15.3]} 31...
axb3 {[%clk 0:01:51.9]} 32. cxb3 {[%clk 0:01:15.4]} 32... Bxb3 {[%clk
0:01:51.9]} 33. Nxb3 {[%clk 0:01:13.6]} 33... Kxe5 {[%clk 0:01:52.3]} 34. Kc3
{[%clk 0:01:04.8]} 34... Ke4 {[%clk 0:01:50.6]} 35. Bxc5 {[%clk 0:00:50.2]}
35... Bf6+ {[%clk 0:01:50.7]} 36. Kd2 {[%clk 0:00:49.7]} 36... Kf4 {[%clk
0:01:46.3]} 37. Bd6+ {[%clk 0:00:47]} 37... Kf3 {[%clk 0:01:46.1]} 38. Kd3
{[%clk 0:00:37.8]} 38... Kg2 {[%clk 0:01:45.1]} 39. Nd4 {[%clk 0:00:37]} 39...
Bxd4 {[%clk 0:01:37]} 40. Kxd4 {[%clk 0:00:36.6]} 40... Kxh3 {[%clk 0:01:37.9]}
41. Bf4 {[%clk 0:00:35.8]} 41... Kg4 {[%clk 0:01:37.8]} 42. Ke5 {[%clk
0:00:35.9]} 42... h5 {[%clk 0:01:38.1]} 43. Bh2 {[%clk 0:00:33.3]} 43... h4
{[%clk 0:01:38.5]} 44. Bf4 {[%clk 0:00:33.3]} 44... h3 {[%clk 0:01:38.8]} 45.
Bh2 {[%clk 0:00:33.5]} 45... Kg5 {[%clk 0:01:33.1]} 46. Bf4+ {[%clk 0:00:33.1]}
46... Kg6 {[%clk 0:01:33.5]} 47. Bh2 {[%clk 0:00:32.8]} 47... Kg5 {[%clk
0:01:33.4]} 48. Bf4+ {[%clk 0:00:33]} 48... Kg6 {[%clk 0:01:33.9]} 49. Bh2
{[%clk 0:00:33.2]} 49... Kh5 {[%clk 0:01:34.8]} 50. Kxf5 {[%clk 0:00:31.6]}
50... Kh4 {[%clk 0:01:35.3]} 51. Kf4 {[%clk 0:00:31.3]} 51... Kh5 {[%clk
0:01:34.9]} 52. Kg3 {[%clk 0:00:30.6]} 52... Kg5 {[%clk 0:01:35.4]} 53. Kxh3
{[%clk 0:00:30.9]} 1/2-1/2

[Event "Early-Titled-Tuesday-Blitz-June-18-2024"]
[Site "Chess.com"]
[Date "2024.06.18"]
[Round "8"]
[White "DonCiao"]
[Black "yonaltimur"]
[Result "0-1"]
[WhiteElo "2086"]
[BlackElo "2302"]
[TimeControl "180+1"]
[EndTime "9:29:06 PDT"]
[Termination "yonaltimur won by resignation"]

1. c4 {[%clk 0:02:52.4]} 1... e5 {[%clk 0:02:30.5]} 2. g3 {[%clk 0:02:43.6]}
2... Nf6 {[%clk 0:02:29.4]} 3. Bg2 {[%clk 0:02:44.1]} 3... d5 {[%clk 0:02:28.8]}
4. cxd5 {[%clk 0:02:42.8]} 4... Nxd5 {[%clk 0:02:29.7]} 5. Nc3 {[%clk 0:02:43]}
5... Nb6 {[%clk 0:02:27.2]} 6. Nf3 {[%clk 0:02:43]} 6... Nc6 {[%clk 0:02:27.2]}
7. O-O {[%clk 0:02:42.9]} 7... Be7 {[%clk 0:02:26.7]} 8. a3 {[%clk 0:02:43.6]}
8... O-O {[%clk 0:02:12]} 9. b4 {[%clk 0:02:42.7]} 9... Be6 {[%clk 0:02:10.5]}
10. Bb2 {[%clk 0:02:39.6]} 10... f6 {[%clk 0:02:10.1]} 11. d3 {[%clk 0:02:33.3]}
11... Qe8 {[%clk 0:02:07.3]} 12. Rc1 {[%clk 0:02:29.4]} 12... Qf7 {[%clk
0:01:53.2]} 13. Nb5 {[%clk 0:02:12.5]} 13... Rac8 {[%clk 0:01:39.4]} 14. Rxc6
{[%clk 0:02:05.7]} 14... bxc6 {[%clk 0:01:07]} 15. Nxa7 {[%clk 0:02:05.1]} 15...
Ra8 {[%clk 0:01:04.3]} 16. Nxc6 {[%clk 0:02:04.8]} 16... Na4 {[%clk 0:01:04]}
17. Ba1 {[%clk 0:01:57.3]} 17... Bb3 {[%clk 0:01:02.1]} 18. Qd2 {[%clk 0:01:56]}
18... Bd6 {[%clk 0:00:23.6]} 19. Rc1 {[%clk 0:01:53.3]} 19... Nb6 {[%clk
0:00:23]} 20. Na5 {[%clk 0:01:52.8]} 20... Be6 {[%clk 0:00:22.4]} 21. d4 {[%clk
0:01:48.3]} 21... e4 {[%clk 0:00:22.2]} 22. Ne1 {[%clk 0:01:44.4]} 22... f5
{[%clk 0:00:22.3]} 23. Nc2 {[%clk 0:01:37.2]} 23... Nd5 {[%clk 0:00:21.1]} 24.
Ne3 {[%clk 0:01:37.2]} 24... Nxe3 {[%clk 0:00:21]} 25. Qxe3 {[%clk 0:01:36.7]}
25... Bd5 {[%clk 0:00:21.3]} 26. Bc3 {[%clk 0:01:23.1]} 26... f4 {[%clk
0:00:21.3]} 27. gxf4 {[%clk 0:01:20.6]} 27... Bxf4 {[%clk 0:00:22.2]} 28. Qh3
{[%clk 0:01:18.9]} 28... Bxc1 {[%clk 0:00:22.4]} 29. Qg4 {[%clk 0:01:01.6]}
29... Qxf2+ {[%clk 0:00:20.9]} 30. Kh1 {[%clk 0:01:00.9]} 30... Be3 {[%clk
0:00:18.2]} 0-1

[Event "Early-Titled-Tuesday-Blitz-June-18-2024"]
[Site "Chess.com"]
[Date "2024.06.18"]
[Round "8"]
[White "manitodeplomo"]
[Black "Aradhya2000"]
[Result "0-1"]
[WhiteElo "2659"]
[BlackElo "2824"]
[TimeControl "180+1"]
[EndTime "9:29:07 PDT"]
[Termination "Aradhya2000 won on time"]

1. d4 {[%clk 0:03:00.9]} 1... d5 {[%clk 0:03:00]} 2. c4 {[%clk 0:02:59.7]} 2...
e6 {[%clk 0:03:00.4]} 3. Nf3 {[%clk 0:02:58.9]} 3... Nf6 {[%clk 0:03:00.2]} 4.
Nc3 {[%clk 0:02:59.1]} 4... dxc4 {[%clk 0:03:00]} 5. e3 {[%clk 0:02:58.3]} 5...
a6 {[%clk 0:03:00]} 6. Bxc4 {[%clk 0:02:58.5]} 6... b5 {[%clk 0:03:00]} 7. Bb3
{[%clk 0:02:58.6]} 7... Bb7 {[%clk 0:03:00.1]} 8. O-O {[%clk 0:02:58.3]} 8...
Nbd7 {[%clk 0:02:58.8]} 9. Re1 {[%clk 0:02:58.4]} 9... b4 {[%clk 0:02:56.2]} 10.
Na4 {[%clk 0:02:51.1]} 10... Bd6 {[%clk 0:02:56]} 11. a3 {[%clk 0:02:31.9]}
11... a5 {[%clk 0:02:53.9]} 12. axb4 {[%clk 0:02:30.4]} 12... axb4 {[%clk
0:02:54.8]} 13. Bd2 {[%clk 0:02:30.3]} 13... O-O {[%clk 0:02:54.1]} 14. Qe2
{[%clk 0:02:28.7]} 14... Qe7 {[%clk 0:02:42.7]} 15. Rec1 {[%clk 0:02:28]} 15...
e5 {[%clk 0:02:42.1]} 16. dxe5 {[%clk 0:02:24.6]} 16... Nxe5 {[%clk 0:02:40.7]}
17. Nd4 {[%clk 0:02:22.4]} 17... Qd7 {[%clk 0:02:28.3]} 18. Nc5 {[%clk
0:01:29.8]} 18... Bxc5 {[%clk 0:02:27.8]} 19. Rxa8 {[%clk 0:01:29.1]} 19... Rxa8
{[%clk 0:02:24.7]} 20. Rxc5 {[%clk 0:01:28.8]} 20... Ra1+ {[%clk 0:02:21]} 21.
Rc1 {[%clk 0:01:27.9]} 21... Rxc1+ {[%clk 0:02:16.9]} 22. Bxc1 {[%clk
0:01:28.8]} 22... c5 {[%clk 0:02:16.3]} 23. f4 {[%clk 0:00:47.1]} 23... cxd4
{[%clk 0:02:00]} 24. fxe5 {[%clk 0:00:46.5]} 24... d3 {[%clk 0:02:00.6]} 25. Qf1
{[%clk 0:00:29.1]} 25... Ne4 {[%clk 0:01:55.6]} 26. Qf4 {[%clk 0:00:02.2]} 26...
g5 {[%clk 0:01:34.5]} 27. e6 {[%clk 0:00:01.5]} 27... fxe6 {[%clk 0:01:29.3]}
28. Qb8+ {[%clk 0:00:01.5]} 28... Kf7 {[%clk 0:01:23.7]} 29. Qe5 {[%clk
0:00:01.8]} 29... Bd5 {[%clk 0:01:18.2]} 0-1

[Event "Early-Titled-Tuesday-Blitz-June-18-2024"]
[Site "Chess.com"]
[Date "2024.06.18"]
[Round "8"]
[White "Austen48"]
[Black "Eliwood44"]
[Result "0-1"]
[WhiteElo "2300"]
[BlackElo "2479"]
[TimeControl "180+1"]
[EndTime "9:29:15 PDT"]
[Termination "Eliwood44 won by resignation"]

1. d4 {[%clk 0:02:55.7]} 1... Nf6 {[%clk 0:02:59.9]} 2. c4 {[%clk 0:02:55.2]}
2... e6 {[%clk 0:03:00.5]} 3. Nc3 {[%clk 0:02:55]} 3... d5 {[%clk 0:03:00.8]} 4.
cxd5 {[%clk 0:02:54.4]} 4... exd5 {[%clk 0:03:01]} 5. Bg5 {[%clk 0:02:54.1]}
5... c6 {[%clk 0:03:01.3]} 6. e3 {[%clk 0:02:54.4]} 6... h6 {[%clk 0:03:01.3]}
7. Bh4 {[%clk 0:02:53.3]} 7... Bd6 {[%clk 0:02:58.6]} 8. Bd3 {[%clk 0:02:45.8]}
8... O-O {[%clk 0:02:57.6]} 9. Qc2 {[%clk 0:02:44.9]} 9... Be6 {[%clk
0:02:57.7]} 10. Nge2 {[%clk 0:02:44.6]} 10... Nbd7 {[%clk 0:02:57.8]} 11. h3
{[%clk 0:02:27]} 11... Re8 {[%clk 0:02:56.1]} 12. O-O {[%clk 0:02:26.2]} 12...
a6 {[%clk 0:02:49.8]} 13. a4 {[%clk 0:02:23.3]} 13... Rc8 {[%clk 0:02:49.1]} 14.
Bg3 {[%clk 0:02:19.9]} 14... Bxg3 {[%clk 0:02:42.1]} 15. Nxg3 {[%clk 0:02:19.6]}
15... c5 {[%clk 0:02:42.7]} 16. dxc5 {[%clk 0:02:16.8]} 16... Nxc5 {[%clk
0:02:43.6]} 17. Bf5 {[%clk 0:02:14.9]} 17... Nfe4 {[%clk 0:02:38.8]} 18. Qe2
{[%clk 0:01:54.3]} 18... Nxc3 {[%clk 0:02:35]} 19. bxc3 {[%clk 0:01:52.7]} 19...
Bxf5 {[%clk 0:02:31.7]} 20. Nxf5 {[%clk 0:01:52.3]} 20... Ne4 {[%clk 0:02:31.3]}
21. Qg4 {[%clk 0:01:45.9]} 21... Qf6 {[%clk 0:02:28.8]} 22. Rad1 {[%clk
0:01:37.9]} 22... h5 {[%clk 0:02:27.4]} 23. Qf4 {[%clk 0:01:34.8]} 23... Nxc3
{[%clk 0:02:21.7]} 24. Rd2 {[%clk 0:01:27.1]} 24... Re4 {[%clk 0:02:18.2]} 25.
Qf3 {[%clk 0:01:26.5]} 25... Rxa4 {[%clk 0:02:10.1]} 26. Rxd5 {[%clk 0:00:37]}
26... Nxd5 {[%clk 0:01:58.2]} 27. Qxd5 {[%clk 0:00:37.4]} 27... g6 {[%clk
0:01:54.5]} 28. Nd4 {[%clk 0:00:31.7]} 28... Rd8 {[%clk 0:01:52.2]} 29. Qxb7
{[%clk 0:00:30.9]} 29... a5 {[%clk 0:01:45.1]} 30. Rc1 {[%clk 0:00:22.6]} 30...
Raxd4 {[%clk 0:01:41.5]} 31. exd4 {[%clk 0:00:20.6]} 31... Qxd4 {[%clk
0:01:42.1]} 32. Qc7 {[%clk 0:00:19.6]} 32... a4 {[%clk 0:01:41]} 33. Qc2 {[%clk
0:00:16.2]} 33... a3 {[%clk 0:01:40.4]} 34. Qb3 {[%clk 0:00:14.9]} 34... Ra8
{[%clk 0:01:34.3]} 35. Rc2 {[%clk 0:00:13.5]} 35... Qa1+ {[%clk 0:01:29.2]} 36.
Kh2 {[%clk 0:00:13.1]} 36... a2 {[%clk 0:01:29.6]} 37. g3 {[%clk 0:00:12]} 37...
Qb1 {[%clk 0:01:27.6]} 38. Rxa2 {[%clk 0:00:04.1]} 38... Qxa2 {[%clk 0:01:22.2]}
0-1